bitfinex/quotes_BTCUSD_20250527
["timestamp","ask_amount","ask_price","bid_price","bid_amount"]
[1748364621756,0.14714301,110410.0,110400.0,1.45422914]
[1748364621976,0.14714301,110410.0,110400.0,1.44517134]
[1748364622452,0.14714301,110410.0,110400.0,1.45422922]
[1748364622675,0.14825689,110410.0,110400.0,1.47234458]
[1748364623117,0.20831346,110410.0,110400.0,1.48140205]
[1748364623334,0.20831346,110410.0,110400.0,1.47234458]
[1748364623574,0.20831346,110410.0,110400.0,1.46328702]
[1748364623806,0.19020007,110410.0,110400.0,1.45422922]
[1748364624465,0.19020007,110410.0,110400.0,1.46328694]
[1748364624689,0.18114301,110410.0,110400.0,1.25495395]
[1748364624912,0.18114301,110410.0,110400.0,1.22355395]
[1748364625132,0.18114301,110410.0,110400.0,0.402]
[1748364625373,0.72783725,110410.0,110400.0,0.68908]
[1748364625812,0.75913725,110410.0,110400.0,1.08908]
[1748364626075,0.79153725,110410.0,110400.0,0.062]
[1748364626308,0.8825912,110410.0,110400.0,0.002]
[1748364626514,1.20130869,110410.0,110400.0,0.002]
[1748364626765,1.1706712,110410.0,110400.0,0.002]
[1748364626981,1.23330427,110410.0,110400.0,0.001]
[1748364627193,1.32435822,110410.0,110400.0,0.001]
[1748364627418,1.32435822,110410.0,110400.0,0.002]
[1748364627664,1.26172515,110410.0,110400.0,0.002]
[1748364627856,1.26172515,110410.0,110400.0,0.001]
[1748364628087,1.26472515,110410.0,110400.0,0.001]
[1748364628312,0.19929283,110390.0,110380.0,0.28808]
[1748364628529,0.19931072,110380.0,110370.0,1.01116922]
[1748364628780,0.21742919,110380.0,110370.0,1.08436562]
[1748364629031,0.01811798,110380.0,110370.0,1.18541899]
[1748364629277,0.04529615,110380.0,110370.0,1.58529899]
[1748364629498,0.22648913,110380.0,110370.0,1.55732686]
[1748364629726,0.19931138,110380.0,110370.0,1.08711043]
[1748364629948,0.19931138,110380.0,110370.0,1.29313717]
[1748364630162,0.19931138,110380.0,110370.0,1.10286825]
[1748364630421,0.19931138,110380.0,110370.0,1.28407691]
[1748364630847,0.19931138,110380.0,110370.0,1.29413726]
[1748364631080,0.19025185,110380.0,110370.0,1.29413726]
[1748364633248,0.19025185,110380.0,110370.0,1.30319752]
[1748364633702,0.18119224,110380.0,110370.0,0.77454782]
[1748364634191,0.72788648,110380.0,110370.0,0.34214782]
[1748364634867,0.79188648,110380.0,110370.0,0.34214782]
[1748364635294,0.79188648,110380.0,110370.0,0.00214782]
[1748364636006,1.08032648,110380.0,110370.0,0.00214782]
[1748364636679,1.06332648,110380.0,110370.0,0.00214782]
[1748364637856,1.15438043,110380.0,110370.0,0.00214782]
[1748364638799,1.15438043,110380.0,110370.0,0.00114782]
[1748364639028,1.16892128,110380.0,110370.0,0.00114782]
[1748364639249,1.16992128,110380.0,110370.0,0.00114782]
[1748364639480,1.16992128,110380.0,110370.0,0.00014782]
[1748364639722,1.26197523,110380.0,110370.0,0.00014782]
[1748364640407,1.26097523,110380.0,110370.0,0.00014782]
[1748364641807,1.26197523,110380.0,110370.0,0.00014782]
[1748364642288,1.26097523,110380.0,110370.0,0.00014782]
[1748364642522,1.26197523,110380.0,110370.0,0.00014782]
[1748364643538,1.26097523,110380.0,110370.0,0.00014782]
[1748364643745,1.24497523,110380.0,110370.0,0.00014782]
[1748364644198,1.15392128,110380.0,110370.0,0.00014782]
[1748364645093,1.15592128,110380.0,110370.0,0.00014782]
[1748364645321,0.86748128,110380.0,110370.0,0.00014782]
[1748364645537,0.19032074,110340.0,110330.0,1.2371603]
[1748364645761,0.19938314,110340.0,110330.0,1.41096705]
[1748364646943,0.19032074,110340.0,110330.0,1.40590367]
[1748364647642,0.19032074,110340.0,110330.0,1.3968402]
[1748364647909,0.19032074,110340.0,110330.0,1.40590383]
[1748364648134,0.19032074,110340.0,110330.0,1.33270743]
[1748364648360,0.19032074,110340.0,110330.0,1.34577098]
[1748364648585,0.19032074,110340.0,110330.0,1.3913438]
[1748364649357,0.19032074,110340.0,110330.0,1.40040735]
[1748364649585,0.1812415,110350.0,110340.0,0.2730833]
[1748364649804,0.19936539,110350.0,110340.0,0.36413734]
[1748364650037,0.19936539,110350.0,110340.0,0.35507469]
[1748364650273,0.19936539,110350.0,110340.0,0.75507469]
[1748364650489,0.19936539,110350.0,110340.0,0.76413742]
[1748364650728,0.0181234,110350.0,110340.0,0.77320007]
[1748364650949,0.18125639,110360.0,110350.0,0.01]
[1748364651202,0.18125639,110360.0,110350.0,0.16525395]
[1748364651477,0.18123751,110370.0,110360.0,0.00906117]
[1748364651700,0.18123751,110370.0,110360.0,0.10105395]
[1748364652140,0.18123751,110370.0,110360.0,0.16525395]
[1748364652366,0.18123751,110370.0,110360.0,0.1743152]
[1748364652604,0.18123751,110370.0,110360.0,0.69554011]
[1748364653082,0.18123751,110370.0,110360.0,0.70460128]
[1748364653837,0.18123751,110370.0,110360.0,1.1136622]
[1748364654516,0.18123751,110370.0,110360.0,1.09460128]
[1748364654758,0.18123751,110370.0,110360.0,1.10366228]
[1748364655214,0.18123751,110370.0,110360.0,1.11272312]
[1748364655440,0.18123751,110370.0,110360.0,1.10366228]
[1748364655674,0.18123751,110370.0,110360.0,1.1127232]
[1748364655901,0.18123751,110370.0,110360.0,1.10366228]
[1748364656391,0.18123751,110370.0,110360.0,1.1127232]
[1748364656858,0.18123751,110370.0,110360.0,1.09460128]
[1748364657562,0.14719224,110380.0,110370.0,0.24170866]
[1748364657788,0.16531121,110380.0,110370.0,0.0605]
[1748364657994,0.14831121,110380.0,110370.0,0.34718]
[1748364658220,0.14831121,110380.0,110370.0,0.74718]
[1748364658425,0.14831121,110380.0,110370.0,1.03756339]
[1748364658639,0.15031121,110380.0,110370.0,0.85425475]
[1748364658873,0.15231121,110380.0,110370.0,0.854304]
[1748364659081,0.14325185,110380.0,110370.0,1.04457309]
[1748364659322,0.14325185,110380.0,110370.0,1.05363344]
[1748364659545,0.13419224,110380.0,110370.0,0.567624]
[1748364661571,0.13419224,110380.0,110370.0,0.75789301]
[1748364661983,0.13419224,110380.0,110370.0,0.74883266]
[1748364662418,0.13419224,110380.0,110370.0,0.567624]
[1748364662865,0.13419224,110380.0,110370.0,0.75789309]
[1748364663719,0.13419224,110380.0,110370.0,0.77121919]
[1748364664128,0.13419224,110380.0,110370.0,0.5809501]
[1748364664785,0.004,110380.0,110370.0,1.86029406]
[1748364665007,0.19535225,110390.0,110380.0,0.25255177]
[1748364665273,0.19535225,110390.0,110370.0,1.49368883]
[1748364665274,0.19025168,110380.0,110370.0,0.75929615]
[1748364665483,0.76934592,110380.0,110370.0,4.925e-05]
[1748364665717,0.80234592,110380.0,110370.0,4.925e-05]
[1748364665948,0.80234592,110380.0,110370.0,0.00104925]
[1748364666195,1.22095636,110380.0,110370.0,0.00104925]
[1748364666413,1.14234592,110380.0,110370.0,0.00104925]
[1748364666679,1.42830592,110380.0,110370.0,4.925e-05]
[1748364666899,1.51935987,110380.0,110370.0,4.925e-05]
[1748364667108,1.23339987,110380.0,110370.0,4.925e-05]
[1748364667951,1.24996308,110380.0,110370.0,4.925e-05]
[1748364668614,1.51822592,110380.0,110370.0,4.925e-05]
[1748364670440,1.26865198,110380.0,110370.0,4.925e-05]
[1748364670614,1.23238592,110380.0,110370.0,4.925e-05]
[1748364671045,0.53025168,110380.0,110370.0,4.925e-05]
[1748364671251,0.19025168,110380.0,110370.0,4.925e-05]
[1748364671671,0.73694592,110380.0,110370.0,4.925e-05]
[1748364672112,0.17325168,110380.0,110370.0,4.925e-05]
[1748364672772,0.18231112,110380.0,110370.0,4.925e-05]
[1748364677319,0.76090536,110380.0,110370.0,4.925e-05]
[1748364677542,0.79340536,110380.0,110370.0,4.925e-05]
[1748364680555,0.77640536,110380.0,110370.0,4.925e-05]
[1748364682251,1.11640536,110380.0,110370.0,4.925e-05]
[1748364682476,1.20745931,110380.0,110370.0,4.925e-05]
[1748364682672,1.22200016,110380.0,110370.0,4.925e-05]
[1748364682983,1.28456324,110380.0,110370.0,4.925e-05]
[1748364683191,1.2752003,110380.0,110370.0,4.925e-05]
[1748364683405,1.33776275,110380.0,110370.0,4.925e-05]
[1748364683621,0.19033798,110330.0,110320.0,0.31415409]
[1748364683838,0.19033798,110330.0,110320.0,0.69590836]
[1748364684024,0.19033798,110330.0,110320.0,0.70497281]
[1748364684669,0.19033798,110330.0,110320.0,0.71403718]
[1748364684884,0.19033798,110330.0,110320.0,0.73265853]
[1748364685112,0.19033798,110330.0,110320.0,0.71546583]
[1748364685340,0.20846507,110330.0,110320.0,0.73359432]
[1748364685558,0.19940169,110330.0,110320.0,0.42998583]
[1748364685801,0.19033806,110330.0,110320.0,0.4390502]
[1748364686025,0.18127435,110330.0,110320.0,0.42998583]
[1748364686271,0.18127435,110330.0,110320.0,0.42092138]
[1748364686688,0.18127435,110330.0,110320.0,0.26066606]
[1748364687595,0.17527435,110330.0,110320.0,0.51640106]
[1748364688005,0.17527435,110330.0,110320.0,0.70675638]
[1748364688216,0.18433806,110330.0,110320.0,0.77532067]
[1748364688557,0.18433806,110330.0,110320.0,0.77832067]
[1748364688558,0.19340153,110330.0,110320.0,0.77832067]
[1748364688769,0.19340153,110330.0,110320.0,0.78738488]
[1748364688970,0.19340153,110330.0,110320.0,0.78238488]
[1748364689345,0.19340153,110330.0,110320.0,0.77332067]
[1748364689808,0.18433806,110330.0,110320.0,0.50940106]
[1748364689955,0.18433806,110330.0,110320.0,0.41834711]
[1748364690390,0.18433806,110330.0,110320.0,0.42134711]
[1748364690875,0.18433806,110330.0,110320.0,0.02134711]
[1748364691287,0.18433806,110330.0,110320.0,0.42134711]
[1748364691493,0.21473806,110330.0,110320.0,0.42134711]
[1748364691923,0.21473806,110330.0,110320.0,0.40349302]
[1748364692144,0.21473806,110330.0,110320.0,0.40049302]
[1748364692419,0.7940323,110330.0,110320.0,0.00049302]
[1748364692638,1.1340323,110330.0,110320.0,0.00049302]
[1748364692790,0.87397806,110330.0,110320.0,0.00049302]
[1748364692994,1.4206723,110330.0,110320.0,0.00049302]
[1748364693215,1.5107523,110330.0,110320.0,0.00049302]
[1748364694514,1.5007523,110330.0,110320.0,0.00049302]
[1748364698306,1.5006723,110330.0,110320.0,0.00049302]
[1748364699199,1.1240323,110330.0,110320.0,0.00049302]
[1748364699428,1.1607523,110330.0,110320.0,0.00049302]
[1748364699659,1.1606723,110330.0,110320.0,0.00049302]
[1748364699879,0.61397806,110330.0,110320.0,0.00049302]
[1748364700113,1.1606723,110330.0,110320.0,0.00049302]
[1748364700322,1.25272625,110330.0,110320.0,0.00049302]
[1748364700538,0.70603201,110330.0,110320.0,0.00049302]
[1748364700757,1.25372625,110330.0,110320.0,0.00049302]
[1748364701197,0.87708625,110330.0,110320.0,0.00049302]
[1748364701427,1.25396625,110330.0,110320.0,0.00049302]
[1748364701645,1.23696625,110330.0,110320.0,0.00049302]
[1748364702720,0.86008625,110330.0,110320.0,0.00049302]
[1748364702933,1.23676625,110330.0,110320.0,0.00049302]
[1748364703154,0.31339201,110330.0,110320.0,0.00049302]
[1748364703379,1.23672625,110330.0,110320.0,0.00049302]
[1748364704453,1.23680625,110330.0,110320.0,0.00049302]
[1748364706789,0.86008625,110330.0,110320.0,0.00049302]
[1748364707096,1.23676625,110330.0,110320.0,0.00049302]
[1748364708603,1.23576625,110330.0,110320.0,0.00049302]
[1748364708816,1.22776625,110330.0,110320.0,0.00049302]
[1748364709439,1.22676625,110330.0,110320.0,0.00049302]
[1748364709661,1.22876625,110330.0,110320.0,0.00049302]
[1748364709876,0.19945544,110300.0,110290.0,0.4452964]
[1748364710108,0.19945544,110300.0,110290.0,0.54489515]
[1748364710546,0.19945544,110300.0,110290.0,0.94489515]
[1748364710748,0.19945544,110300.0,110290.0,0.97519515]
[1748364711010,0.19945544,110300.0,110290.0,0.97520035]
[1748364711247,0.19945544,110300.0,110290.0,0.97720112]
[1748364711481,0.19945544,110300.0,110290.0,0.94890112]
[1748364711741,0.19945544,110300.0,110290.0,0.01255077]
[1748364712230,0.19945544,110300.0,110290.0,0.41255606]
[1748364712438,0.74614968,110300.0,110290.0,0.01255606]
[1748364712649,0.74614968,110300.0,110290.0,0.01255704]
[1748364713354,0.19945544,110300.0,110290.0,0.07495532]
[1748364715192,0.19945544,110300.0,110290.0,0.07439301]
[1748364715400,0.74614968,110300.0,110290.0,0.01199546]
[1748364715823,0.7280179,110300.0,110290.0,0.01199546]
[1748364716090,0.74614968,110300.0,110290.0,0.01199749]
[1748364716540,0.74614968,110300.0,110290.0,0.41199749]
[1748364716734,0.74614968,110300.0,110290.0,0.4035717]
[1748364717010,0.19945544,110300.0,110290.0,0.41199952]
[1748364717751,0.19945544,110300.0,110290.0,0.41200064]
[1748364719403,0.74614968,110300.0,110290.0,0.41200233]
[1748364719604,0.74614968,110300.0,110290.0,0.01200233]
[1748364719815,0.74614968,110300.0,110290.0,0.01200458]
[1748364720036,0.19945544,110300.0,110290.0,0.4120046]
[1748364720271,0.19945544,110300.0,110290.0,0.41200384]
[1748364721342,0.19945544,110300.0,110290.0,0.4035717]
[1748364721553,0.80964968,110300.0,110290.0,0.41200707]
[1748364722241,0.23115544,110300.0,110290.0,0.41200707]
[1748364722464,0.23115544,110300.0,110290.0,0.41201175]
[1748364722681,0.19945544,110300.0,110290.0,0.4035717]
[1748364722892,0.72914968,110300.0,110290.0,0.41201246]
[1748364723119,0.72914968,110300.0,110290.0,0.01201246]
[1748364723336,0.76224968,110300.0,110290.0,0.01201246]
[1748364723570,0.79414968,110300.0,110290.0,0.41201246]
[1748364724249,0.76224968,110300.0,110290.0,0.41201246]
[1748364724462,0.21555544,110300.0,110290.0,0.412012]
[1748364724671,0.72914968,110300.0,110290.0,0.41201175]
[1748364725099,0.18245544,110300.0,110290.0,0.41201175]
[1748364725320,0.18245544,110300.0,110290.0,0.41201095]
[1748364725528,0.18245544,110300.0,110290.0,0.41201102]
[1748364725946,0.18245544,110300.0,110290.0,0.4035717]
[1748364726172,0.18245544,110300.0,110290.0,0.41201091]
[1748364726432,0.18245544,110300.0,110290.0,0.47591091]
[1748364726668,0.18245544,110300.0,110290.0,0.34830496]
[1748364726863,0.03626324,110300.0,110290.0,1.00238453]
[1748364727097,0.02719714,110300.0,110290.0,1.39394576]
[1748364727315,0.02719714,110300.0,110290.0,1.69324576]
[1748364727529,0.03626315,110300.0,110290.0,1.69324576]
[1748364727709,0.22665299,110300.0,110290.0,1.69324576]
[1748364727977,0.03626315,110300.0,110290.0,1.69324576]
[1748364728202,0.04532925,110300.0,110290.0,1.69324576]
[1748364728421,0.22665291,110300.0,110290.0,1.69324585]
[1748364728648,0.22665291,110300.0,110290.0,1.70231227]
[1748364728882,0.2175878,110300.0,110290.0,1.68417934]
[1748364729326,0.20852195,110300.0,110290.0,1.68417934]
[1748364729784,0.20852195,110300.0,110290.0,1.69324593]
[1748364730005,0.19038984,110300.0,110290.0,1.69324593]
[1748364730276,0.19038984,110300.0,110290.0,1.71137878]
[1748364730277,0.01813178,110300.0,110290.0,1.71137878]
[1748364730483,0.02719714,110300.0,110290.0,1.37137878]
[1748364730906,0.22665291,110300.0,110290.0,1.37137878]
[1748364731122,0.02719714,110300.0,110290.0,1.37137878]
[1748364731559,0.03626315,110300.0,110290.0,1.37137878]
[1748364731779,0.04532933,110300.0,110290.0,1.36231244]
[1748364732241,0.02719714,110300.0,110290.0,1.37137886]
[1748364732467,0.19943752,110310.0,110300.0,0.26325561]
[1748364732684,0.19943752,110310.0,110300.0,0.35430956]
[1748364732901,0.02719492,110310.0,110300.0,0.37244093]
[1748364733121,0.2175675,110310.0,110300.0,0.77244093]
[1748364733344,0.02719492,110310.0,110300.0,0.77244093]
[1748364733564,0.20850214,110310.0,110300.0,0.77244093]
[1748364733789,0.20850214,110310.0,110300.0,0.76337533]
[1748364734013,0.02719492,110310.0,110300.0,0.77344101]
[1748364734245,0.02719492,110310.0,110300.0,0.78250661]
[1748364734461,0.01812882,110320.0,110310.0,0.59277249]
[1748364734678,0.19941961,110320.0,110310.0,0.97022644]
[1748364735336,0.19941961,110320.0,110310.0,0.98478154]
[1748364735557,0.20041961,110320.0,110310.0,0.98478154]
[1748364736197,0.002,110320.0,110310.0,0.71651168]
[1748364736418,0.020128,110320.0,110310.0,2.0876567]
[1748364736652,0.020128,110320.0,110310.0,1.53060446]
[1748364736873,0.21954761,110320.0,110310.0,1.01173646]
[1748364737098,0.20141961,110320.0,110310.0,0.98929737]
[1748364737313,0.20141961,110320.0,110310.0,1.12731387]
[1748364737541,0.02919196,110320.0,110310.0,0.8592436]
[1748364737762,0.02919205,110320.0,110310.0,1.1454036]
[1748364738231,0.02919205,110320.0,110310.0,1.5454036]
[1748364738477,0.01812768,110320.0,110310.0,1.5285728]
[1748364738679,0.21752854,110330.0,110320.0,0.60151961]
[1748364738897,0.20846524,110330.0,110320.0,0.69257356]
[1748364739111,0.20846524,110330.0,110320.0,0.70163777]
[1748364739328,0.20846524,110330.0,110320.0,1.10163777]
[1748364739544,0.20846524,110330.0,110320.0,1.11070173]
[1748364739782,0.00906306,110330.0,110320.0,1.11070108]
[1748364739974,0.02918991,110330.0,110320.0,1.11070108]
[1748364740188,0.01106306,110330.0,110320.0,1.11070108]
[1748364740397,0.02918991,110330.0,110320.0,1.11070108]
[1748364740611,0.03825313,110330.0,110320.0,1.10163728]
[1748364740827,0.03825313,110330.0,110320.0,1.11070124]
[1748364741085,0.002,110330.0,110320.0,1.41000124]
[1748364741306,0.002,110330.0,110320.0,3.11257933]
[1748364741537,0.002,110330.0,110320.0,2.83785037]
[1748364741807,0.002,110330.0,110320.0,3.68384461]
[1748364742018,0.002,110330.0,110320.0,3.13715037]
[1748364742258,0.02718424,110350.0,110340.0,0.20844562]
[1748364742469,0.00906133,110350.0,110340.0,1.56586057]
[1748364742904,0.01812283,110350.0,110340.0,1.96586057]
[1748364743108,0.00906133,110350.0,110340.0,1.96586057]
[1748364743589,0.01827037,110350.0,110340.0,1.96586057]
[1748364744434,0.01827037,110350.0,110340.0,1.67966057]
[1748364744872,0.02733203,110350.0,110340.0,2.05646057]
[1748364745084,0.01827037,110350.0,110340.0,2.05638057]
[1748364745553,0.19028943,110360.0,110350.0,0.19936507]
[1748364745766,0.20890453,110360.0,110350.0,0.29041902]
[1748364746206,0.20890453,110360.0,110350.0,0.69041902]
[1748364746873,0.19984369,110360.0,110350.0,0.70048125]
[1748364747071,0.19984369,110360.0,110350.0,0.69241951]
[1748364747307,0.19984369,110360.0,110350.0,0.71054308]
[1748364747744,0.19984369,110360.0,110350.0,0.71960466]
[1748364747973,0.00955368,110360.0,110350.0,0.78200409]
[1748364748422,0.00955352,110360.0,110350.0,1.28999309]
[1748364748843,0.03673603,110360.0,110350.0,1.28999309]
[1748364749060,0.03673603,110360.0,110350.0,1.26623009]
[1748364749295,0.0457972,110360.0,110350.0,0.88427509]
[1748364749723,0.0457972,110360.0,110350.0,0.86615209]
[1748364750162,0.0457972,110360.0,110350.0,0.87521375]
[1748364750621,0.21796177,110360.0,110350.0,0.87521375]
[1748364750853,0.00049301,110360.0,110350.0,1.43096949]
[1748364751287,0.01861436,110360.0,110350.0,1.77096949]
[1748364751511,0.0095536,110360.0,110350.0,1.43096949]
[1748364752392,0.01861436,110360.0,110350.0,1.43096949]
[1748364752617,0.19932961,110370.0,110360.0,0.18122508]
[1748364752836,0.19932961,110370.0,110360.0,0.56710028]
[1748364753055,0.19932961,110370.0,110360.0,0.57616145]
[1748364753275,0.19026951,110370.0,110360.0,0.96710028]
[1748364754611,0.22196951,110370.0,110360.0,0.96710028]
[1748364754837,0.25486951,110370.0,110360.0,0.4]
[1748364755068,0.25486951,110370.0,110360.0,0.6856]
[1748364755069,0.80156375,110370.0,110360.0,0.6856]
[1748364755296,0.25486951,110370.0,110360.0,0.6856]
[1748364755512,0.25486951,110370.0,110360.0,0.4]
[1748364755759,0.25486951,110370.0,110360.0,0.6856]
[1748364758283,0.25486951,110370.0,110360.0,0.86682508]
[1748364758480,0.01812045,110370.0,110360.0,0.97600103]
[1748364758681,0.01812036,110370.0,110360.0,1.0474617]
[1748364759548,0.24500042,110380.0,110360.0,1.05652229]
[1748364759753,0.02718021,110370.0,110360.0,1.0474617]
[1748364759961,0.01811995,110370.0,110360.0,1.0474617]
[1748364760203,0.01811987,110370.0,110360.0,1.0474617]
[1748364760620,0.04075936,110380.0,110370.0,0.19932894]
[1748364760854,0.19931113,110380.0,110370.0,0.29038289]
[1748364761071,0.26351113,110380.0,110370.0,0.27226261]
[1748364761298,0.26351113,110380.0,110370.0,0.49105395]
[1748364761736,0.26351113,110380.0,110370.0,0.4]
[1748364761945,0.26351113,110380.0,110370.0,0.68556]
[1748364762417,0.26551113,110380.0,110370.0,0.68556]
[1748364763041,0.26751113,110380.0,110370.0,0.4]
[1748364764382,0.26751113,110380.0,110370.0,0.41340007]
[1748364764836,0.26751113,110380.0,110370.0,0.60366916]
[1748364765077,0.01812012,110370.0,110360.0,0.84302675]
[1748364765297,0.05002012,110370.0,110360.0,0.9340807]
[1748364765523,0.05908022,110370.0,110360.0,1.3340807]
[1748364765738,0.06813999,110370.0,110360.0,1.3340807]
[1748364765952,0.25840884,110370.0,110360.0,1.32502011]
[1748364766168,0.07720009,110370.0,110360.0,1.33408078]
[1748364766608,0.24682902,110370.0,110360.0,1.32062021]
[1748364766842,0.24682902,110370.0,110360.0,1.05318229]
[1748364767041,0.24682902,110370.0,110360.0,1.35686405]
[1748364767470,0.23192902,110370.0,110360.0,1.35686405]
[1748364767687,0.19932902,110370.0,110360.0,1.35686405]
[1748364768328,0.19932902,110370.0,110360.0,1.35686356]
[1748364768545,0.19932902,110370.0,110360.0,1.33874196]
[1748364773216,0.25216892,110370.0,110360.0,1.13033388]
[1748364773446,0.25216892,110370.0,110360.0,1.31155896]
[1748364773447,0.24310866,110370.0,110360.0,1.31155896]
[1748364773657,0.24310866,110370.0,110360.0,1.32968129]
[1748364773864,0.22610866,110370.0,110360.0,1.33874229]
[1748364774072,0.22610866,110370.0,110360.0,1.32968129]
[1748364774291,0.22610866,110370.0,110360.0,1.33874221]
[1748364774513,0.22610866,110370.0,110360.0,1.32968129]
[1748364774981,0.22610866,110370.0,110360.0,1.32062021]
[1748364775240,0.22610866,110370.0,110360.0,1.32058021]
[1748364775647,0.22610866,110370.0,110360.0,1.11657395]
[1748364776302,0.7728029,110370.0,110360.0,0.4]
[1748364776540,0.7728029,110370.0,110350.0,0.62552]
[1748364776541,0.25118616,110360.0,110350.0,0.62552]
[1748364776971,0.25118616,110360.0,110350.0,1.02552]
[1748364777600,0.25118616,110360.0,110350.0,1.02652]
[1748364777817,0.25118616,110360.0,110350.0,1.02752]
[1748364779154,0.23004716,110360.0,110350.0,1.2087615]
[1748364779355,0.23004716,110360.0,110350.0,1.26734705]
[1748364779356,0.19934716,110360.0,110350.0,1.26734705]
[1748364779601,0.19934716,110360.0,110350.0,1.26734713]
[1748364780247,0.20840833,110360.0,110350.0,1.23594713]
[1748364780485,0.19934733,110360.0,110350.0,1.22688556]
[1748364780733,0.23094733,110360.0,110350.0,1.22688556]
[1748364780992,0.24612508,110360.0,110350.0,1.22688556]
[1748364781846,0.199347,110360.0,110350.0,1.2359473]
[1748364782045,0.20840825,110360.0,110350.0,1.24500896]
[1748364782250,0.20840825,110360.0,110350.0,1.2359473]
[1748364783569,0.19934741,110360.0,110350.0,1.23594747]
[1748364784235,0.25308633,110360.0,110350.0,1.2087615]
[1748364784440,0.24402508,110360.0,110350.0,1.21782357]
[1748364784657,0.24402508,110360.0,110350.0,1.22688548]
[1748364785099,0.24402508,110360.0,110350.0,1.21782357]
[1748364785317,0.24402508,110360.0,110350.0,1.02752]
[1748364785537,0.24402508,110360.0,110350.0,1.21782341]
[1748364785751,0.25308633,110360.0,110350.0,1.22688523]
[1748364785968,0.22168633,110360.0,110350.0,1.22688523]
[1748364787313,0.22168633,110360.0,110350.0,1.21782341]
[1748364787530,0.22168633,110360.0,110350.0,1.21782357]
[1748364787740,0.22168633,110360.0,110350.0,1.22688556]
[1748364787946,0.20468633,110360.0,110350.0,1.22688556]
[1748364788606,0.20468633,110360.0,110350.0,1.02752]
[1748364788808,0.23788633,110360.0,110350.0,1.21782357]
[1748364789018,0.23788633,110360.0,110350.0,0.742]
[1748364789231,0.23788633,110360.0,110350.0,1.02752]
[1748364789452,0.23788633,110360.0,110350.0,1.2087615]
[1748364789657,0.23788633,110360.0,110350.0,1.21782357]
[1748364789881,0.23788633,110360.0,110350.0,1.22688556]
[1748364790098,0.23788633,110360.0,110350.0,1.21782357]
[1748364790783,0.77551932,110360.0,110350.0,0.402]
[1748364790997,0.77551932,110360.0,110350.0,0.002]
[1748364791664,0.77551932,110360.0,110340.0,0.28552]
[1748364791665,0.19030341,110350.0,110340.0,0.28552]
[1748364791893,0.25420341,110350.0,110340.0,0.28552]
[1748364792327,0.24515793,110340.0,110330.0,0.35386112]
[1748364792562,0.24515793,110340.0,110330.0,0.83154696]
[1748364792790,0.79185217,110340.0,110330.0,0.28601301]
[1748364793243,0.79185217,110340.0,110330.0,0.62601301]
[1748364793478,0.24515793,110340.0,110330.0,0.62601301]
[1748364793688,0.24515793,110340.0,110330.0,0.28901301]
[1748364794146,0.19032074,110340.0,110330.0,0.47935091]
[1748364794423,0.1993833,110340.0,110330.0,0.49747776]
[1748364794863,0.20844619,110340.0,110330.0,0.49141438]
[1748364795085,0.19144619,110340.0,110330.0,0.49141438]
[1748364795297,0.19144619,110340.0,110330.0,0.48235091]
[1748364795525,0.18238363,110340.0,110330.0,0.48235091]
[1748364797005,0.18238363,110340.0,110330.0,0.48235107]
[1748364797226,0.17332082,110340.0,110330.0,0.88235107]
[1748364797434,0.22775793,110340.0,110330.0,0.69201301]
[1748364799218,0.22775793,110340.0,110330.0,0.88235107]
[1748364799918,0.22775793,110340.0,110330.0,0.69201301]
[1748364800550,0.16425793,110340.0,110330.0,0.89141454]
[1748364800973,0.16425793,110340.0,110330.0,0.88235099]
[1748364801383,0.16425793,110340.0,110330.0,0.87328736]
[1748364801809,0.16425793,110340.0,110330.0,0.88235107]
[1748364802009,0.14725793,110340.0,110330.0,0.70107672]
[1748364802441,0.18015793,110340.0,110330.0,0.70107672]
[1748364802653,0.14725793,110340.0,110330.0,0.88235107]
[1748364802861,0.14725793,110340.0,110330.0,0.70107672]
[1748364803084,0.18015793,110340.0,110330.0,0.69201301]
[1748364803290,0.21295793,110340.0,110330.0,0.40649301]
[1748364803497,0.21295793,110340.0,110330.0,0.69201301]
[1748364805170,0.21295793,110340.0,110330.0,0.40649301]
[1748364805402,0.75965217,110340.0,110330.0,0.00649301]
[1748364806262,0.75965217,110340.0,110330.0,0.00349301]
[1748364806502,0.75965217,110340.0,110330.0,0.00249301]
[1748364806741,0.75965217,110340.0,110330.0,0.00449301]
[1748364807201,0.21295793,110340.0,110330.0,0.00449301]
[1748364808704,0.75965217,110340.0,110330.0,0.00449301]
[1748364809115,0.74265217,110340.0,110330.0,0.00449301]
[1748364810691,0.19595793,110340.0,110330.0,0.00449301]
[1748364811348,0.13025793,110340.0,110330.0,0.18576736]
[1748364811561,0.13025793,110340.0,110330.0,0.00449301]
[1748364812629,0.19085793,110340.0,110330.0,0.00449301]
[1748364814909,0.19085793,110340.0,110330.0,0.21636736]
[1748364814910,0.13025793,110340.0,110330.0,0.21636736]
[1748364815130,0.13932082,110340.0,110330.0,0.26719437]
[1748364815360,0.13932082,110340.0,110330.0,0.06779301]
[1748364815595,0.13932082,110340.0,110330.0,0.03509301]
[1748364816052,0.13932082,110340.0,110330.0,0.00449301]
[1748364816273,0.12232082,110340.0,110330.0,0.18576736]
[1748364816516,0.12232082,110340.0,110330.0,0.26789462]
[1748364816711,0.12232082,110340.0,110330.0,0.25883107]
[1748364816919,0.19032066,110340.0,110330.0,0.35894857]
[1748364817374,0.19032066,110340.0,110330.0,0.34988502]
[1748364818679,0.19032066,110340.0,110330.0,0.36801203]
[1748364818891,0.19032066,110340.0,110330.0,0.35894865]
[1748364819103,0.19032066,110340.0,110330.0,0.36801212]
[1748364819528,0.20844595,110340.0,110330.0,0.36801212]
[1748364819704,0.19938347,110340.0,110330.0,0.84498696]
[1748364820003,0.19032074,110340.0,110330.0,0.84498696]
[1748364820217,0.1900885,110340.0,110330.0,0.84498696]
[1748364821125,0.1900885,110340.0,110330.0,0.81108696]
[1748364822407,0.1900885,110340.0,110330.0,0.84178696]
[1748364823266,0.1730885,110340.0,110330.0,0.84178696]
[1748364823737,0.1730885,110340.0,110330.0,0.81108696]
[1748364824856,0.1730885,110340.0,110330.0,1.03272502]
[1748364825488,0.1730885,110340.0,110330.0,0.84238696]
[1748364826351,0.1730885,110340.0,110330.0,1.03272502]
[1748364826571,0.1730885,110340.0,110330.0,0.85145067]
[1748364826777,0.1730885,110340.0,110330.0,0.84238696]
[1748364827002,0.1730885,110340.0,110330.0,1.03272494]
[1748364827211,0.1730885,110340.0,110330.0,0.84238696]
[1748364827465,0.1730885,110340.0,110330.0,1.03272494]
[1748364827886,0.1730885,110340.0,110330.0,0.84211773]
[1748364828328,0.1730885,110340.0,110330.0,1.02339208]
[1748364828569,0.00906256,110340.0,110330.0,1.0415191]
[1748364828792,0.19030357,110350.0,110340.0,0.24205793]
[1748364829016,0.19030357,110350.0,110340.0,0.33311188]
[1748364829217,0.19030357,110350.0,110340.0,0.34217469]
[1748364829527,0.19030357,110350.0,110340.0,0.71147469]
[1748364830396,0.17330357,110350.0,110340.0,0.71147469]
[1748364830632,0.1642415,110350.0,110340.0,0.49105395]
[1748364830871,0.1966415,110350.0,110340.0,0.49105395]
[1748364831090,0.1966415,110350.0,110340.0,0.49205395]